bitfinex/quotes_BTCUSD_20250102
["timestamp","ask_amount","ask_price","bid_price","bid_amount"]
[1735845282296,0.3120517,97553.0,97552.0,0.5276712]
[1735845282513,0.40408847,97553.0,97552.0,0.5276712]
[1735845283486,0.5299189,97553.0,97552.0,0.5276712]
[1735845283896,0.5299189,97553.0,97552.0,0.49538318]
[1735845284624,0.3918517,97553.0,97552.0,0.49538318]
[1735845285605,0.57542389,97553.0,97552.0,0.49538318]
[1735845286421,0.57542389,97553.0,97552.0,0.49438318]
[1735845286623,0.3918517,97553.0,97552.0,0.49438318]
[1735845287477,0.3110117,97553.0,97552.0,0.49438318]
[1735845287993,0.03402538,97553.0,97552.0,0.49438318]
[1735845288210,0.0020856,97553.0,97552.0,1.99438318]
[1735845288835,8.56e-05,97553.0,97552.0,1.97938318]
[1735845289050,0.0010856,97553.0,97552.0,1.98838318]
[1735845289419,8.56e-05,97553.0,97552.0,1.97938318]
[1735845289634,0.0010856,97553.0,97552.0,1.98838318]
[1735845290015,0.0010856,97553.0,97552.0,1.99438318]
[1735845290557,0.0010856,97553.0,97552.0,1.98838318]
[1735845291020,0.0020856,97553.0,97552.0,2.21594318]
[1735845291235,0.15,97570.0,97552.0,2.21594318]
[1735845291236,0.30693988,97572.0,97567.0,0.1216]
[1735845291638,0.204984,97569.0,97567.0,0.1216]
[1735845291842,0.30897032,97569.0,97567.0,0.1216]
[1735845292033,0.30897032,97569.0,97558.0,1.5]
[1735845292034,0.205004,97559.0,97558.0,1.5]
[1735845292268,0.205006,97558.0,97555.0,0.0761]
[1735845292473,0.205014,97554.0,97553.0,0.0456]
[1735845292675,0.34095244,97554.0,97552.0,0.48638318]
[1735845292879,0.13593844,97553.0,97552.0,0.48638318]
[1735845293082,0.13593844,97553.0,97552.0,0.47938318]
[1735845293942,0.15893844,97553.0,97552.0,0.47938318]
[1735845294162,0.39724468,97553.0,97552.0,0.47938318]
[1735845294381,0.31984844,97553.0,97552.0,0.47938318]
[1735845294777,0.31984844,97553.0,97552.0,0.19355711]
[1735845295242,0.31984844,97553.0,97552.0,0.20055711]
[1735845295451,0.41184344,97553.0,97552.0,0.20055711]
[1735845295651,0.41080344,97553.0,97552.0,0.20055711]
[1735845295855,0.41080344,97553.0,97552.0,0.20955711]
[1735845296058,0.41080344,97553.0,97552.0,0.27575711]
[1735845296059,0.101865,97553.0,97552.0,0.27575711]
[1735845296265,0.091995,97553.0,97552.0,0.27575711]
[1735845296439,0.091995,97553.0,97552.0,0.19955711]
[1735845296440,0.13596954,97553.0,97552.0,0.19955711]
[1735845296578,0.30896954,97553.0,97552.0,0.19355711]
[1735845296778,0.30896954,97553.0,97552.0,0.19755711]
[1735845296984,0.30896954,97553.0,97552.0,0.20455711]
[1735845297192,0.30896954,97553.0,97552.0,0.19355711]
[1735845297651,0.30896954,97553.0,97552.0,0.19955711]
[1735845298713,0.30896954,97553.0,97552.0,0.20855711]
[1735845301446,0.28596954,97553.0,97552.0,0.20855711]
[1735845302897,0.28605514,97553.0,97552.0,0.20855711]
[1735845305409,0.28605514,97553.0,97552.0,0.33305711]
[1735845305410,0.03206882,97553.0,97552.0,0.33305711]
[1735845305609,0.03206882,97553.0,97552.0,0.43201711]
[1735845305836,0.03206882,97553.0,97552.0,0.33305711]
[1735845306387,0.03206882,97553.0,97552.0,1.83305711]
[1735845306560,8.56e-05,97553.0,97552.0,1.83305711]
[1735845306758,8.56e-05,97553.0,97552.0,1.82705711]
[1735845306988,8.56e-05,97553.0,97552.0,1.81805711]
[1735845307165,8.56e-05,97553.0,97552.0,1.91701711]
[1735845307378,8.56e-05,97553.0,97552.0,1.93501711]
[1735845308929,8.56e-05,97553.0,97552.0,1.83605711]
[1735845309106,8.56e-05,97553.0,97552.0,1.93501711]
[1735845310597,8.56e-05,97553.0,97552.0,2.03501711]
[1735845312035,8.56e-05,97553.0,97552.0,2.02601711]
[1735845312364,8.56e-05,97553.0,97552.0,2.01701711]
[1735845314264,8.56e-05,97553.0,97552.0,2.12100343]
[1735845314698,8.56e-05,97553.0,97552.0,2.01701711]
[1735845317077,8.56e-05,97553.0,97552.0,2.12100343]
[1735845318146,8.56e-05,97553.0,97552.0,1.81805711]
[1735845318406,8.56e-05,97553.0,97552.0,0.31805711]
[1735845318621,8.56e-05,97553.0,97552.0,0.41701711]
[1735845321302,8.56e-05,97553.0,97552.0,1.79251711]
[1735845321506,8.56e-05,97553.0,97552.0,1.69355711]
[1735845322481,8.56e-05,97553.0,97552.0,1.70255711]
[1735845322700,0.03203582,97553.0,97552.0,1.69355711]
[1735845323063,8.56e-05,97553.0,97552.0,1.71155711]
[1735845324381,8.56e-05,97553.0,97552.0,0.21155711]
[1735845325015,8.56e-05,97553.0,97552.0,1.71155711]
[1735845327157,8.56e-05,97553.0,97552.0,1.81051711]
[1735845328394,8.56e-05,97553.0,97552.0,1.79251711]
[1735845328560,8.56e-05,97553.0,97552.0,1.80151711]
[1735845328763,8.56e-05,97553.0,97552.0,1.81051711]
[1735845333318,0.17562218,97557.0,97553.0,0.09896]
[1735845333524,0.17562218,97557.0,97553.0,0.93066]
[1735845333723,0.38063018,97557.0,97553.0,0.93066]
[1735845334365,0.17562218,97557.0,97553.0,0.93066]
[1735845334516,0.17562218,97557.0,97553.0,0.93966]
[1735845335345,0.17562218,97557.0,97554.0,0.09896]
[1735845335572,0.38063018,97557.0,97554.0,0.83169]
[1735845335786,0.205012,97555.0,97554.0,0.83169]
[1735845335989,0.34098806,97555.0,97554.0,0.83169]
[1735845336617,0.34098806,97555.0,97554.0,0.84069]
[1735845337873,0.34098806,97555.0,97554.0,0.83169]
[1735845338226,0.34098806,97555.0,97554.0,0.84969]
[1735845338450,0.34098806,97555.0,97554.0,0.84069]
[1735845338612,0.34098806,97555.0,97554.0,0.84969]
[1735845338813,0.34098806,97555.0,97554.0,0.84069]
[1735845339013,0.34098806,97555.0,97554.0,0.84669]
[1735845342785,0.34098806,97555.0,97554.0,0.84665]
[1735845344002,0.34098806,97555.0,97554.0,2.34665]
[1735845345064,0.34098806,97555.0,97554.0,0.84665]
[1735845348344,0.49098806,97555.0,97554.0,0.84665]
[1735845348543,0.56818806,97555.0,97554.0,0.84665]
[1735845349090,0.56922806,97555.0,97554.0,0.84665]
[1735845350665,0.56922806,97555.0,97554.0,0.83765]
[1735845350797,0.56818806,97555.0,97554.0,0.83165]
[1735845351005,0.56827356,97555.0,97554.0,0.84065]
[1735845351199,0.56827356,97555.0,97554.0,0.84565]
[1735845351417,0.56827356,97555.0,97554.0,0.83665]
[1735845351638,0.56827356,97555.0,97554.0,0.83965]
[1735845351838,0.49107356,97555.0,97554.0,0.83965]
[1735845352127,0.49107356,97555.0,97554.0,0.83165]
[1735845352327,0.49107356,97555.0,97554.0,0.83865]
[1735845352546,0.49107356,97555.0,97554.0,0.84265]
[1735845353880,0.49107356,97555.0,97554.0,0.83865]
[1735845353881,0.58316408,97555.0,97554.0,0.83865]
[1735845354092,0.58316408,97555.0,97554.0,0.84265]
[1735845354838,0.43316408,97555.0,97554.0,0.84265]
[1735845355168,0.23708724,97555.0,97554.0,0.84265]
[1735845355367,0.03207524,97555.0,97554.0,0.91925]
[1735845355801,8.55e-05,97555.0,97554.0,2.41925]
[1735845356001,8.55e-05,97555.0,97554.0,2.66321]
[1735845357198,8.55e-05,97555.0,97554.0,2.65621]
[1735845357369,8.55e-05,97555.0,97554.0,2.65221]
[1735845357619,8.55e-05,97555.0,97554.0,2.65921]
[1735845357796,8.55e-05,97555.0,97554.0,2.65621]
[1735845358202,8.55e-05,97555.0,97554.0,2.66121]
[1735845358606,8.55e-05,97555.0,97554.0,2.67021]
[1735845362019,8.55e-05,97555.0,97554.0,2.57021]
[1735845362224,8.55e-05,97555.0,97554.0,0.97125]
[1735845362428,8.55e-05,97555.0,97554.0,1.07021]
[1735845362581,8.55e-05,97555.0,97554.0,0.97125]
[1735845362983,8.55e-05,97555.0,97554.0,0.971421]
[1735845363548,8.55e-05,97555.0,97554.0,0.849821]
[1735845365795,0.01001318,97555.0,97554.0,0.849821]
[1735845366000,0.03206322,97555.0,97554.0,0.849821]
[1735845366411,8.55e-05,97555.0,97554.0,0.849821]
[1735845368416,0.01030674,97555.0,97554.0,0.849821]
[1735845368628,0.04228446,97555.0,97554.0,0.849821]
[1735845368829,0.03206322,97555.0,97554.0,0.849821]
[1735845369072,0.03206322,97555.0,97554.0,1.024681]
[1735845369229,8.55e-05,97555.0,97554.0,1.024681]
[1735845369663,8.55e-05,97555.0,97554.0,2.425721]
[1735845369859,8.55e-05,97555.0,97554.0,2.524681]
[1735845371300,8.55e-05,97555.0,97554.0,2.425721]
[1735845371718,8.55e-05,97555.0,97554.0,0.849821]
[1735845374726,8.55e-05,97555.0,97554.0,0.948781]
[1735845374937,8.55e-05,97555.0,97554.0,1.029981]
[1735845375142,8.55e-05,97555.0,97554.0,2.529981]
[1735845375718,8.55e-05,97555.0,97554.0,2.578181]
[1735845378780,8.55e-05,97555.0,97554.0,2.569181]
[1735845378934,8.55e-05,97555.0,97554.0,2.560181]
[1735845379337,0.0010855,97555.0,97554.0,2.561181]
[1735845380815,8.55e-05,97555.0,97554.0,2.560181]
[1735845383480,8.55e-05,97555.0,97554.0,1.060181]
[1735845383890,8.55e-05,97555.0,97554.0,2.560181]
[1735845384468,8.55e-05,97555.0,97554.0,2.461221]
[1735845384673,0.2050975,97555.0,97554.0,0.831821]
[1735845385323,0.23706817,97555.0,97554.0,0.831821]
[1735845385909,0.23706817,97555.0,97554.0,0.840821]
[1735845386116,0.23706817,97555.0,97554.0,0.939781]
[1735845386334,0.23706817,97555.0,97554.0,0.948781]
[1735845386542,0.03205617,97555.0,97554.0,0.948781]
[1735845386983,8.55e-05,97555.0,97554.0,2.448781]
[1735845387424,0.2050975,97555.0,97554.0,2.448781]
[1735845387659,0.23709067,97555.0,97554.0,2.448781]
[1735845392413,0.23709067,97555.0,97554.0,2.349821]
[1735845392652,0.23709067,97555.0,97554.0,0.849821]
[1735845393028,0.23709067,97555.0,97554.0,2.349821]
[1735845393265,0.38709067,97555.0,97554.0,0.849821]
[1735845393471,0.49107699,97555.0,97554.0,0.849821]
[1735845394355,0.57307699,97555.0,97554.0,0.831821]
[1735845394774,0.57307699,97555.0,97554.0,0.848821]
[1735845394973,0.59372721,97555.0,97554.0,0.839821]
[1735845395383,0.59372721,97555.0,97554.0,0.848821]
[1735845395538,0.82399747,97555.0,97554.0,0.848821]
[1735845395734,0.82399747,97555.0,97554.0,0.831821]
[1735845395948,0.82399747,97555.0,97554.0,0.847821]
[1735845396710,0.59476721,97555.0,97554.0,0.847821]
[1735845397248,0.59476721,97555.0,97554.0,0.831821]
[1735845397540,0.59372721,97555.0,97554.0,0.831821]
[1735845397715,0.59372721,97555.0,97554.0,0.835821]
[1735845397870,0.59372721,97555.0,97554.0,0.842821]
[1735845398270,0.80334725,97555.0,97554.0,0.842821]
[1735845398526,0.72134725,97555.0,97554.0,0.842821]
[1735845399064,0.72134725,97555.0,97554.0,2.342821]
[1735845399515,0.61736093,97555.0,97554.0,2.342821]
[1735845399766,0.58536776,97555.0,97554.0,2.342821]
[1735845399970,0.43536776,97555.0,97554.0,2.342821]
[1735845400653,0.2050975,97555.0,97554.0,2.342821]
[1735845400839,0.2050975,97555.0,97554.0,2.335821]
[1735845401042,0.23705746,97555.0,97554.0,2.335821]
[1735845401230,0.03204546,97555.0,97554.0,2.340821]
[1735845401460,8.55e-05,97555.0,97554.0,2.439781]
[1735845401631,8.55e-05,97555.0,97554.0,2.447781]
[1735845401835,8.55e-05,97555.0,97554.0,2.348821]
[1735845402037,0.2050975,97555.0,97554.0,2.348821]
[1735845402814,0.23705992,97555.0,97554.0,2.348821]
[1735845403229,0.34104624,97555.0,97554.0,2.348821]
[1735845403448,0.34104624,97555.0,97554.0,0.848821]
[1735845403449,0.49104624,97555.0,97554.0,0.848821]
[1735845403677,0.49104624,97555.0,97554.0,0.848781]
[1735845404869,0.38705992,97555.0,97554.0,0.848781]
[1735845405372,0.49104624,97555.0,97554.0,0.848781]
[1735845408833,0.45908382,97555.0,97554.0,0.848781]
[1735845409646,0.49104269,97555.0,97554.0,0.848781]
[1735845410637,0.49104269,97555.0,97554.0,0.840781]
[1735845411082,0.49104269,97555.0,97554.0,0.834781]
[1735845411285,0.49104269,97555.0,97554.0,0.838781]
[1735845411652,0.57368269,97555.0,97554.0,0.835781]
[1735845411857,0.57368269,97555.0,97554.0,0.838781]
[1735845412500,0.80387744,97555.0,97554.0,0.837781]
[1735845414044,0.72123744,97555.0,97554.0,0.837781]
[1735845414840,0.62909366,97555.0,97554.0,2.337781]
[1735845415048,0.62909366,97555.0,97554.0,2.334781]
[1735845415250,0.62909366,97555.0,97554.0,2.329781]
[1735845415429,0.62909366,97555.0,97554.0,0.834781]
[1735845415832,0.62909366,97555.0,97554.0,0.829781]
[1735845416171,0.49104269,97555.0,97554.0,0.829781]
[1735845416621,0.49104269,97555.0,97554.0,0.832781]
[1735845417036,0.23705637,97555.0,97554.0,0.832781]
[1735845417238,0.23705637,97555.0,97554.0,0.829781]
[1735845417456,0.23705637,97555.0,97554.0,0.841781]
[1735845418068,0.03204437,97555.0,97554.0,0.829781]
[1735845418267,0.03204437,97555.0,97554.0,1.014641]
[1735845418467,0.23705637,97555.0,97554.0,1.023641]
[1735845418710,0.2050975,97555.0,97554.0,1.023641]
[1735845418930,0.2370691,97555.0,97554.0,1.023641]
[1735845420408,0.2050975,97555.0,97554.0,1.023641]
[1735845420883,0.2050975,97555.0,97554.0,2.523641]
[1735845421307,0.23707409,97555.0,97554.0,2.523641]
[1735845421591,0.2050975,97555.0,97554.0,2.523641]
[1735845421800,0.2050975,97555.0,97554.0,1.023641]
[1735845421801,0.23707403,97555.0,97554.0,1.023641]
[1735845422007,0.34106035,97555.0,97554.0,0.845781]
[1735845422207,0.49106035,97555.0,97554.0,0.845781]
[1735845428246,0.38707403,97555.0,97554.0,0.845781]
[1735845428816,0.38707403,97555.0,97554.0,0.928981]
[1735845429024,0.23707403,97555.0,97554.0,0.928981]
[1735845429229,0.23707403,97555.0,97554.0,0.978481]
[1735845431865,0.23707403,97555.0,97554.0,0.845781]
[1735845431866,0.34106035,97555.0,97554.0,0.845781]
[1735845432129,0.49106035,97555.0,97554.0,0.845781]
[1735845433939,0.49210035,97555.0,97554.0,0.845781]
[1735845434142,0.49106035,97555.0,97554.0,0.845781]
[1735845434666,0.49106035,97555.0,97554.0,0.829781]
[1735845434813,0.49106035,97555.0,97554.0,0.833781]
[1735845435020,0.49106035,97555.0,97554.0,0.840781]
[1735845435256,0.38707403,97555.0,97554.0,0.833781]
[1735845435460,0.38707403,97555.0,97554.0,0.965681]
[1735845435461,0.23707403,97555.0,97554.0,0.965681]
[1735845435833,0.23707403,97555.0,97554.0,0.972681]
[1735845436155,0.23707403,97555.0,97554.0,0.968681]
[1735845436355,0.23707403,97555.0,97554.0,0.972681]
[1735845436968,0.23707403,97555.0,97554.0,0.961681]
[1735845437222,0.23707403,97555.0,97554.0,0.966681]
[1735845437397,0.23707403,97555.0,97554.0,0.975681]
[1735845439344,0.23707403,97555.0,97554.0,0.970681]
[1735845439529,0.23707403,97555.0,97554.0,2.470681]
[1735845439727,0.23707403,97555.0,97554.0,2.476681]
[1735845440204,0.03206203,97555.0,97554.0,2.575641]
[1735845440787,0.03206203,97555.0,97554.0,2.566641]
[1735845440992,0.03206203,97555.0,97554.0,2.575641]
[1735845444479,0.03206203,97555.0,97554.0,1.075641]
[1735845444961,0.03206203,97555.0,97554.0,2.575641]
[1735845445343,8.55e-05,97555.0,97554.0,2.575641]
[1735845445776,8.55e-05,97555.0,97554.0,2.775641]
[1735845446341,8.55e-05,97555.0,97554.0,2.769641]
[1735845446747,8.55e-05,97555.0,97554.0,2.778641]
[1735845446951,8.55e-05,97555.0,97554.0,2.769641]
[1735845447158,8.55e-05,97555.0,97554.0,2.77991998]
[1735845447492,8.55e-05,97555.0,97554.0,2.78891998]
[1735845447667,8.55e-05,97557.0,97556.0,0.19896]
[1735845447876,0.43528742,97599.0,97590.0,0.22656]
[1735845448052,0.03198039,97591.0,97590.0,1.06014]
[1735845448258,0.13822045,97592.0,97591.0,0.2]
[1735845448619,0.13822045,97592.0,97591.0,1.03358]
[1735845448943,0.13822045,97592.0,97591.0,1.13254]
[1735845449154,0.13870972,97592.0,97591.0,1.13254]
[1735845449362,0.00048927,97592.0,97591.0,1.13254]
[1735845450479,0.00048927,97592.0,97591.0,1.15054]
[1735845450700,0.00048927,97592.0,97591.0,1.14154]
[1735845451120,0.00048927,97592.0,97591.0,1.15054]
[1735845451289,0.00048927,97592.0,97591.0,1.14154]
[1735845451504,0.00048927,97592.0,97591.0,1.13254]
[1735845451708,0.00048927,97592.0,97591.0,1.14154]
[1735845451903,0.00048927,97592.0,97591.0,2.64154]
[1735845452105,0.00048927,97592.0,97591.0,2.65054]
[1735845454922,0.00048927,97592.0,97591.0,2.63254]
[1735845455349,0.00048927,97592.0,97591.0,2.63454]
[1735845455576,0.00048927,97592.0,97591.0,2.63354]
[1735845455757,0.00048927,97592.0,97591.0,2.63254]
[1735845455951,0.00048927,97592.0,97591.0,2.63354]
[1735845456256,0.00048927,97592.0,97591.0,2.63454]
[1735845457739,0.00048927,97592.0,97591.0,2.73852632]
[1735845457943,0.00048927,97592.0,97591.0,2.91932632]
[1735845458416,0.00057477,97592.0,97591.0,2.91832632]
[1735845458977,0.00057477,97592.0,97591.0,2.99182632]
[1735845459185,0.00057477,97592.0,97591.0,2.99082632]
[1735845459415,0.00057477,97592.0,97591.0,2.88584]
[1735845459611,0.00057477,97592.0,97591.0,2.88684]
[1735845460180,0.00057477,97592.0,97591.0,2.88584]
[1735845460359,0.00057477,97592.0,97591.0,2.98982632]
[1735845460756,0.00057477,97592.0,97591.0,2.99082632]
[1735845461162,0.00057477,97592.0,97591.0,2.96782632]
[1735845461564,0.00057477,97592.0,97591.0,2.86882632]
[1735845461766,0.00057477,97592.0,97591.0,2.86782632]
[1735845462158,0.00057477,97592.0,97591.0,2.86882632]
[1735845462797,0.00057477,97592.0,97591.0,2.76484]
[1735845462983,0.00057477,97592.0,97591.0,2.86882632]
[1735845464303,0.00057477,97592.0,97591.0,2.76882632]
[1735845465213,0.00057477,97592.0,97591.0,2.86882632]
[1735845465697,0.00057477,97592.0,97591.0,2.76484]
[1735845466528,0.00057477,97592.0,97591.0,2.43454]
[1735845466946,0.00057477,97592.0,97591.0,2.53454]
[1735845467140,0.00057477,97592.0,97591.0,2.43454]
[1735845467295,0.00057477,97592.0,97591.0,2.53454]
[1735845467506,0.00057477,97592.0,97591.0,2.43254]
[1735845467918,0.00957477,97592.0,97591.0,2.64254]
[1735845468132,0.00857477,97592.0,97591.0,2.53354]
[1735845468376,0.00057477,97592.0,97591.0,2.43254]
[1735845468581,0.00157477,97592.0,97591.0,2.54154]
[1735845468805,0.00257477,97592.0,97591.0,2.55054]
[1735845470567,0.00157477,97592.0,97591.0,2.541711]
[1735845470775,0.00057477,97592.0,97591.0,2.532711]
[1735845470999,0.00057477,97592.0,97591.0,2.550711]
[1735845471211,0.00057477,97592.0,97591.0,2.541711]
[1735845471457,0.00057477,97592.0,97591.0,2.532711]
[1735845471658,0.00057477,97592.0,97591.0,2.541711]
[1735845471876,0.00057477,97592.0,97591.0,2.550711]
[1735845472321,0.00057477,97592.0,97591.0,2.541711]
[1735845472528,0.00057477,97592.0,97591.0,2.532711]
[1735845472712,0.00057477,97592.0,97591.0,2.541711]
[1735845473977,0.00057477,97592.0,97591.0,2.550711]
[1735845478655,0.00057477,97592.0,97591.0,1.050711]
[1735845479265,0.00057477,97592.0,97591.0,2.550711]
[1735845482415,0.03257622,97592.0,97591.0,2.550711]
[1735845483263,0.03257622,97592.0,97591.0,2.351751]
[1735845483883,0.13656254,97592.0,97591.0,2.351751]
[1735845484097,0.13656254,97592.0,97591.0,0.851751]
[1735845484706,0.13656254,97592.0,97591.0,0.842751]
[1735845485896,0.13656254,97592.0,97591.0,0.833751]
[1735845486100,0.13656254,97592.0,97591.0,0.842751]
[1735845487195,0.13656254,97592.0,97591.0,0.849751]
[1735845488600,0.28656254,97592.0,97591.0,0.849751]
[1735845494310,0.03257622,97592.0,97591.0,0.849751]
[1735845494728,0.03257622,97592.0,97591.0,0.948711]
[1735845494930,0.00057477,97592.0,97591.0,0.948711]
[1735845495464,0.03252435,97592.0,97591.0,0.948711]
[1735845495669,0.03252435,97592.0,97591.0,0.849751]
[1735845495900,0.03252435,97592.0,97591.0,0.948711]
[1735845496103,0.03252435,97592.0,97591.0,0.849751]
[1735845496297,0.03252435,97592.0,97591.0,0.948711]
[1735845496508,0.03252435,97592.0,97591.0,0.849751]
[1735845497833,0.03252435,97592.0,97591.0,0.948711]
[1735845498487,0.03252435,97592.0,97591.0,0.849751]
[1735845499527,0.18252435,97592.0,97591.0,0.849751]
[1735845499744,0.28651067,97592.0,97591.0,0.849751]
[1735845503957,0.00057477,97592.0,97591.0,1.079711]
[1735845504175,0.00057477,97592.0,97591.0,1.179711]
[1735845504531,0.00057477,97592.0,97591.0,2.679711]
[1735845505626,0.00057477,97592.0,97591.0,2.663711]
[1735845505942,0.00057477,97592.0,97591.0,2.672711]
[1735845506144,0.00057477,97592.0,97591.0,2.680711]
[1735845506495,0.00057477,97592.0,97591.0,2.671711]
[1735845506791,0.00057477,97592.0,97591.0,2.672711]
[1735845507189,0.00057477,97592.0,97591.0,2.681711]
[1735845508499,0.00057477,97592.0,97591.0,1.181711]
[1735845509915,0.00057477,97592.0,97591.0,1.081711]
[1735845510139,0.00057477,97592.0,97591.0,1.181711]
[1735845510544,0.00057477,97592.0,97591.0,1.081711]
[1735845510792,0.00057477,97592.0,97591.0,1.181711]
[1735845512007,0.00057477,97592.0,97591.0,1.081711]
[1735845512412,0.00057477,97592.0,97591.0,1.050711]
[1735845512612,0.00057477,97592.0,97591.0,2.550711]
[1735845512816,0.00057477,97592.0,97591.0,2.450711]
[1735845513043,0.01092208,97592.0,97591.0,2.550711]
[1735845513315,0.01092208,97592.0,97591.0,2.450711]
[1735845514362,0.01092208,97592.0,97591.0,2.550711]
[1735845514568,0.00057477,97592.0,97591.0,2.550711]
[1735845514991,0.00057477,97592.0,97591.0,2.626911]
[1735845515403,0.00057477,97592.0,97591.0,2.674911]
[1735845515610,0.00057477,97592.0,97591.0,2.77889732]
[1735845517901,8.55e-05,97601.0,97600.0,3.37179432]
[1735845518694,8.55e-05,97601.0,97600.0,3.37279432]
[1735845519789,8.55e-05,97601.0,97600.0,3.37379432]
[1735845524873,8.55e-05,97601.0,97600.0,3.39679432]
[1735845525083,8.55e-05,97620.0,97619.0,0.628038]
[1735845525288,8.55e-05,97620.0,97619.0,1.56545432]
[1735845525711,8.55e-05,97620.0,97619.0,3.06545432]
[1735845526380,8.55e-05,97620.0,97619.0,3.06745432]
[1735845527185,8.55e-05,97620.0,97619.0,3.07761068]
[1735845527391,8.55e-05,97620.0,97619.0,2.963468]
[1735845528176,8.55e-05,97620.0,97619.0,2.961468]
[1735845528376,8.55e-05,97620.0,97619.0,2.962468]
[1735845528538,8.55e-05,97620.0,97619.0,2.963468]
[1735845528745,8.55e-05,97620.0,97619.0,2.65759]
[1735845528966,8.55e-05,97620.0,97619.0,2.75759]
[1735845529415,8.55e-05,97620.0,97619.0,2.75859]
[1735845532934,8.55e-05,97620.0,97619.0,2.65859]
[1735845533130,8.55e-05,97620.0,97619.0,2.75859]
[1735845543141,8.55e-05,97620.0,97619.0,2.86257632]
[1735845544854,8.55e-05,97620.0,97619.0,2.63439]
[1735845545231,8.55e-05,97620.0,97619.0,2.53439]
[1735845545722,8.55e-05,97620.0,97619.0,2.63439]
[1735845545887,8.55e-05,97620.0,97619.0,2.63239]
[1735845546124,8.55e-05,97620.0,97619.0,2.54139]
[1735845546346,8.55e-05,97620.0,97619.0,2.55039]
[1735845549072,8.55e-05,97620.0,97619.0,2.65039]
[1735845549620,8.55e-05,97620.0,97619.0,2.55039]
[1735845550130,8.55e-05,97620.0,97619.0,2.65039]
[1735845551173,8.55e-05,97620.0,97619.0,2.55039]
[1735845551427,8.55e-05,97620.0,97619.0,2.65039]
[1735845553081,8.55e-05,97620.0,97619.0,2.55039]
[1735845553628,8.55e-05,97620.0,97619.0,0.85143]
[1735845553853,0.03210014,97620.0,97619.0,0.85143]
[1735845554275,0.03210014,97620.0,97619.0,0.95039]
[1735845554926,0.03210014,97620.0,97619.0,0.94139]
[1735845555174,0.03210014,97620.0,97619.0,0.932561]
[1735845555401,0.03410014,97620.0,97619.0,0.950561]
[1735845555605,0.03410014,97620.0,97619.0,1.074961]
[1735845556008,0.03410014,97620.0,97619.0,1.279839]
[1735845556188,0.03410014,97620.0,97619.0,0.950561]
[1735845556626,0.0020855,97620.0,97619.0,0.950561]
[1735845557386,0.0020855,97620.0,97619.0,1.155439]
[1735845557874,0.0020855,97620.0,97619.0,2.655439]
[1735845558459,0.0020855,97620.0,97619.0,2.450561]
[1735845559312,0.03408875,97620.0,97619.0,2.450561]
[1735845560985,0.03408875,97620.0,97619.0,0.950561]
[1735845561302,0.03408875,97620.0,97619.0,0.851601]
[1735845562420,0.03408875,97620.0,97619.0,2.351601]
[1735845562632,0.03408875,97620.0,97619.0,0.851601]
[1735845563054,0.03308875,97620.0,97619.0,0.842601]
[1735845563943,0.03208875,97620.0,97619.0,0.833601]
[1735845564148,0.0010855,97620.0,97619.0,0.842601]
[1735845564296,0.03308875,97620.0,97619.0,0.842601]
[1735845564504,0.03408875,97620.0,97619.0,0.851601]
[1735845564900,0.03308875,97620.0,97619.0,0.841601]
[1735845565249,0.03408875,97620.0,97619.0,0.850601]
[1735845566448,0.28807507,97620.0,97619.0,0.850601]
[1735845567988,0.40288352,97620.0,97619.0,0.850601]
[1735845568881,0.31107507,97620.0,97619.0,0.850601]
[1735845570438,0.28807507,97620.0,97619.0,0.850601]
[1735845570854,0.4260944,97620.0,97619.0,0.850601]
[1735845571901,0.28807507,97620.0,97619.0,0.850601]
[1735845572944,0.38005559,97620.0,97619.0,0.850601]
[1735845573994,0.28807507,97620.0,97619.0,0.850601]
[1735845578234,0.28807507,97620.0,97619.0,0.84972614]
[1735845581250,0.28707507,97620.0,97619.0,0.84072614]
[1735845581651,0.28807507,97620.0,97619.0,0.84972614]
[1735845582307,0.28807507,97620.0,97619.0,0.84072614]
[1735845582308,0.28707507,97620.0,97619.0,0.84072614]
[1735845582510,0.28807507,97620.0,97619.0,0.84772614]
[1735845585641,0.28807507,97620.0,97619.0,0.84768614]
[1735845588831,0.38004896,97620.0,97619.0,0.84768614]
[1735845590523,0.27606264,97620.0,97619.0,0.84768614]
[1735845591144,0.18408875,97620.0,97619.0,0.84768614]
[1735845593624,0.03408875,97620.0,97619.0,0.84768614]
[1735845601080,0.03308875,97620.0,97619.0,0.83868614]
[1735845601283,0.03408875,97620.0,97619.0,0.84768614]
[1735845601544,0.03308875,97620.0,97619.0,0.83168614]
[1735845601687,0.03308875,97620.0,97619.0,0.83768614]
[1735845602313,0.03308875,97620.0,97619.0,0.83168614]
[1735845602698,0.03308875,97620.0,97619.0,0.83768614]
[1735845603818,0.03308875,97620.0,97619.0,0.84668614]
[1735845603819,0.13707507,97620.0,97619.0,0.84668614]
[1735845606164,0.03308875,97620.0,97619.0,0.84668614]
[1735845608176,0.03308875,97620.0,97619.0,0.94564614]
[1735845608392,0.03308875,97620.0,97619.0,1.06624614]
[1735845608597,0.0010855,97620.0,97619.0,1.16624614]
[1735845609190,0.0010855,97620.0,97619.0,1.16024614]
[1735845609371,0.0010855,97620.0,97619.0,1.16924614]
[1735845609576,8.55e-05,97620.0,97619.0,1.16024614]
[1735845609884,8.55e-05,97620.0,97619.0,1.16924614]
[1735845610091,8.55e-05,97620.0,97619.0,2.66924614]
[1735845611940,8.55e-05,97620.0,97619.0,1.16924614]
[1735845614952,8.55e-05,97620.0,97619.0,2.66924614]
[1735845620800,8.55e-05,97620.0,97619.0,1.16924614]
[1735845621379,8.55e-05,97620.0,97619.0,2.66924614]
[1735845626061,8.55e-05,97620.0,97619.0,1.16924614]
[1735845626309,8.55e-05,97620.0,97619.0,1.06924614]
[1735845628789,8.55e-05,97620.0,97619.0,2.66924614]
[1735845628970,8.55e-05,97620.0,97619.0,2.87323246]
[1735845629838,8.55e-05,97620.0,97619.0,2.86423246]
[1735845630065,8.55e-05,97620.0,97619.0,2.85523246]
[1735845630268,8.55e-05,97620.0,97619.0,2.75924614]
[1735845630474,8.55e-05,97620.0,97619.0,2.66824614]
[1735845630630,8.55e-05,97620.0,97619.0,2.76024614]
[1735845631035,8.55e-05,97620.0,97619.0,2.76924614]
[1735845631538,0.00883392,97620.0,97619.0,2.76924614]
[1735845631780,8.55e-05,97620.0,97619.0,2.97412414]
[1735845632731,8.55e-05,97620.0,97619.0,3.07811046]
[1735845638775,8.55e-05,97620.0,97619.0,1.16924614]
[1735845639142,8.55e-05,97620.0,97619.0,0.99374614]
[1735845639397,0.00923019,97620.0,97619.0,0.99374614]
[1735845639544,0.04122016,97620.0,97619.0,0.94864614]
[1735845640360,0.04122016,97620.0,97619.0,0.93964614]
[1735845640732,0.04122016,97620.0,97619.0,0.94764614]
[1735845641131,0.05144638,97620.0,97619.0,0.93864614]
[1735845641338,0.05144638,97620.0,97619.0,0.94764614]